fUST/lending_fUST_20240822
["ID","MTS","AMOUNT","RATE_DAILY","PERIOD"]
[335533646,1724314252072,-162.724549,0.00019178,2]
[335533647,1724314252084,-162.648432,0.00019178,2]
[335533648,1724314252096,-251.0,0.00019178,2]
[335533649,1724314252105,-150.112234,0.000192,2]
[335533650,1724314252115,-150.112233,0.000192,2]
[335533651,1724314252125,-150.112233,0.000192,2]
[335533652,1724314252134,-1000.0,0.00019263,2]
[335533653,1724314252143,-603.0,0.000193,2]
[335533654,1724314252152,-151.0,0.00019326,2]
[335533655,1724314252162,-1000.0,0.00019341,2]
[335533656,1724314252172,-303.9119936,0.00019387,2]
[335533657,1724314252183,-1000.0,0.00019398,2]
[335533658,1724314252191,-1000.0,0.00019417,2]
[335533659,1724314252200,-1000.0,0.00019425,2]
[335533660,1724314252209,-155.0,0.0001943,2]
[335533661,1724314252220,-235.48555203,0.00019432,2]
[335533662,1724314252231,-1000.0,0.00019446,2]
[335533663,1724314252240,-1000.0,0.00019452,2]
[335533664,1724314252251,-153.0,0.00019452,2]
[335533665,1724314252262,-207.6241733,0.00019452,2]
[335533666,1724314252274,-415.1982576,0.00019452,2]
[335533667,1724314252286,-1000.0,0.00019456,2]
[335533668,1724314252295,-1000.0,0.0001946,2]
[335533669,1724314252304,-1000.0,0.00019466,2]
[335533670,1724314252314,-345.80770526,0.00019499,2]
[335533671,1724314252323,-235.48555203,0.00019512,2]
[335533672,1724314252332,-300.0,0.00019575,2]
[335533673,1724314252343,-1000.0,0.00019606,2]
[335533674,1724314252353,-1000.0,0.0001966,2]
[335533675,1724314252365,-1000.0,0.00019663,2]
[335533676,1724314252376,-150.112236,0.000197,2]
[335533677,1724314252388,-377.153,0.000197,2]
[335533678,1724314252399,-903.03906889,0.00019721,2]
[335533679,1724314252411,-1000.0,0.00019721,2]
[335533680,1724314252421,-500.09638552,0.00019721,2]
[335533681,1724314252430,-161.65262117,0.00019721,2]
[335533682,1724314252439,-500.0,0.00019726,7]
[335533683,1724314252448,-500.0,0.00019726,7]
[335533684,1724314252459,-501.76576602,0.00019726,7]
[335533685,1724314252470,-500.0,0.00019726,7]
[335533686,1724314252480,-501.86506517,0.00019726,7]
[335533687,1724314252490,-513.07708007,0.00019726,7]
[335533688,1724314252501,-500.0,0.00019726,7]
[335533689,1724314252513,-312.23695908,0.00019726,7]
[335533690,1724314252523,-500.0,0.00019726,7]
[335533691,1724314252533,-508.06096094,0.00019726,7]
[335533692,1724314252545,-500.0,0.00019726,7]
[335533693,1724314252555,-500.0,0.00019726,7]
[335533694,1724314252569,-500.0,0.00019726,7]
[335533695,1724314252580,-500.0,0.00019726,7]
[335533696,1724314252590,-500.0,0.00019726,7]
[335533697,1724314252603,-500.0,0.00019726,7]
[335533698,1724314252613,-500.0,0.00019726,7]
[335533699,1724314252624,-500.0,0.00019726,7]
[335533700,1724314252635,-500.0,0.00019726,7]
[335533701,1724314252646,-500.0,0.00019726,7]
[335533702,1724314252655,-500.0,0.00019726,7]
[335533703,1724314252664,-500.0,0.00019726,7]
[335533704,1724314252673,-500.0,0.00019726,7]
[335533705,1724314252682,-500.0,0.00019726,7]
[335533706,1724314252692,-500.0,0.00019726,7]
[335533707,1724314252702,-500.0,0.00019726,7]
[335533708,1724314252714,-500.0,0.00019726,7]
[335533709,1724314252724,-500.0,0.00019726,7]
[335533710,1724314252733,-500.0,0.00019726,7]
[335533711,1724314252743,-500.0,0.00019726,7]
[335533712,1724314252752,-500.0,0.00019726,7]
[335533713,1724314252761,-500.0,0.00019726,7]
[335533714,1724314252770,-500.0,0.00019726,7]
[335533715,1724314252781,-500.0,0.00019726,7]
[335533716,1724314252790,-500.0,0.00019726,7]
[335533717,1724314252799,-501.58266784,0.00019726,7]
[335533718,1724314252808,-500.0,0.00019726,7]
[335533719,1724314252818,-500.0,0.00019726,7]
[335533720,1724314252828,-500.0,0.00019726,7]
[335533721,1724314252838,-500.0,0.00019726,7]
[335533722,1724314252848,-500.0,0.00019726,7]
[335533723,1724314252857,-500.0,0.00019726,7]
[335533724,1724314252868,-500.0,0.00019726,7]
[335533725,1724314252878,-500.0,0.00019726,7]
[335533726,1724314252888,-500.0,0.00019726,7]
[335533727,1724314252897,-500.0,0.00019726,7]
[335533728,1724314252906,-500.0,0.00019726,7]
[335533729,1724314252916,-500.0,0.00019726,7]
[335533730,1724314252926,-500.0,0.00019726,7]
[335533731,1724314252936,-500.0,0.00019726,7]
[335533732,1724314252946,-500.0,0.00019726,7]
[335533733,1724314252955,-500.0,0.00019726,7]
[335533734,1724314252965,-500.0,0.00019726,7]
[335533735,1724314252977,-500.0,0.00019726,7]
[335533736,1724314252987,-500.0,0.00019726,7]
[335533737,1724314252996,-502.66802256,0.00019726,7]
[335533738,1724314253006,-500.0,0.00019726,7]
[335533739,1724314253015,-500.0,0.00019726,7]
[335533740,1724314253025,-500.0,0.00019726,7]
[335533741,1724314253034,-500.0,0.00019726,7]
[335533742,1724314253045,-500.0,0.00019726,7]
[335533743,1724314253058,-500.0,0.00019726,7]
[335533744,1724314253069,-500.0,0.00019726,7]
[335533745,1724314253079,-500.0,0.00019726,7]
[335533746,1724314253091,-500.0,0.00019726,7]
[335533747,1724314253100,-500.0,0.00019726,7]
[335533748,1724314253114,-500.0,0.00019726,7]
[335533749,1724314253124,-500.0,0.00019726,7]
[335533750,1724314253133,-500.0,0.00019726,7]
[335533751,1724314253144,-500.0,0.00019726,7]
[335533752,1724314253155,-500.0,0.00019726,7]
[335533753,1724314253166,-500.0,0.00019726,7]
[335533754,1724314253177,-500.0,0.00019726,7]
[335533755,1724314253187,-500.0,0.00019726,7]
[335533756,1724314253197,-501.07034727,0.00019726,7]
[335533757,1724314253207,-500.0,0.00019726,7]
[335533758,1724314253218,-504.55702116,0.00019726,7]
[335533759,1724314253228,-500.0,0.00019726,7]
[335533760,1724314253237,-500.0,0.00019726,7]
[335533761,1724314253248,-500.0,0.00019726,7]
[335533762,1724314253259,-500.0,0.00019726,7]
[335533763,1724314253270,-500.0,0.00019726,7]
[335533764,1724314253280,-500.0,0.00019726,7]
[335533765,1724314253290,-500.0,0.00019726,7]
[335533766,1724314253302,-504.4804634,0.00019726,7]
[335533767,1724314253312,-500.0,0.00019726,7]
[335533768,1724314253324,-500.0,0.00019726,7]
[335533769,1724314253335,-500.0,0.00019726,7]
[335533770,1724314253344,-500.0,0.00019726,7]
[335533771,1724314253355,-504.29167621,0.00019726,7]
[335533772,1724314253367,-519.63,0.00019726,7]
[335533773,1724314253376,-500.0,0.00019726,7]
[335533774,1724314253387,-500.0,0.00019726,7]
[335533775,1724314253399,-500.0,0.00019726,7]
[335533776,1724314253410,-500.0,0.00019726,7]
[335533777,1724314253422,-500.0,0.00019726,7]
[335533778,1724314253432,-500.0,0.00019726,7]
[335533779,1724314253443,-500.0,0.00019726,7]
[335533780,1724314253453,-500.0,0.00019726,7]
[335533781,1724314253464,-250.65852537,0.00019726,7]
[335533782,1724314253475,-500.0,0.00019726,7]
[335533783,1724314253484,-500.0,0.00019726,7]
[335533784,1724314253494,-500.0,0.00019726,7]
[335533785,1724314253505,-500.0,0.00019726,7]
[335533786,1724314253516,-500.0,0.00019726,7]
[335533787,1724314253527,-601.41070558,0.00019726,7]
[335533788,1724314253538,-500.0,0.00019726,7]
[335533789,1724314253549,-550.63,0.00019726,7]
[335533790,1724314253558,-608.99280679,0.00019726,7]
[335533791,1724314253568,-500.0,0.00019726,7]
[335533792,1724314253579,-499.14856205,0.00019726,7]
[335533793,1724314253590,-500.0,0.00019726,7]
[335533794,1724314253600,-500.0,0.00019726,7]
[335533795,1724314253611,-1043.29,0.00019726,7]
[335533796,1724314253623,-500.0,0.00019726,7]
[335533797,1724314253635,-500.0,0.00019726,7]
[335533798,1724314253644,-500.0,0.00019726,7]
[335533799,1724314253656,-500.0,0.00019726,7]
[335533800,1724314253666,-500.0,0.00019726,7]
[335533801,1724314253678,-566.89,0.00019726,7]
[335533802,1724314253690,-500.0,0.00019726,7]
[335533803,1724314253700,-500.0,0.00019726,7]
[335533804,1724314253711,-500.0,0.00019726,7]
[335533805,1724314253720,-500.0,0.00019726,7]
[335533806,1724314253731,-502.18412114,0.00019726,7]
[335533807,1724314253741,-500.0,0.00019726,7]
[335533808,1724314253751,-254.90359516,0.00019726,7]
[335533809,1724314253760,-500.0,0.00019726,7]
[335533810,1724314253770,-741.64,0.00019726,7]
[335533811,1724314253780,-500.0,0.00019726,7]
[335533812,1724314253790,-500.0,0.00019726,7]
[335533813,1724314253800,-500.0,0.00019726,7]
[335533814,1724314253810,-500.0,0.00019726,7]
[335533815,1724314253819,-517.20869598,0.00019726,7]
[335533816,1724314253830,-500.0,0.00019726,7]
[335533817,1724314253840,-500.0,0.00019726,7]
[335533818,1724314253851,-522.10647912,0.00019726,7]
[335533819,1724314253861,-2660.03,0.00019726,7]
[335533820,1724314253872,-500.0,0.00019726,7]
[335533821,1724314253883,-500.0,0.00019726,7]
[335533822,1724314253895,-500.0,0.00019726,7]
[335533823,1724314253908,-181.49146317,0.00019726,7]
[335533824,1724314253917,-500.0,0.00019726,7]
[335533825,1724314253929,-535.16,0.00019726,7]
[335533826,1724314253941,-500.0,0.00019726,7]
[335533827,1724314253951,-500.0,0.00019726,7]
[335533828,1724314253964,-500.0,0.00019726,7]
[335533829,1724314253977,-500.0,0.00019726,7]
[335533830,1724314253987,-500.0,0.00019726,7]
[335533831,1724314253996,-500.0,0.00019726,7]
[335533832,1724314254006,-567.48,0.00019726,7]
[335533833,1724314254015,-500.0,0.00019726,7]
[335533834,1724314254026,-500.0,0.00019726,7]
[335533835,1724314254035,-500.0,0.00019726,7]
[335533836,1724314254044,-500.0,0.00019726,7]
[335533837,1724314254055,-503.76751645,0.00019726,7]
[335533838,1724314254065,-500.0,0.00019726,7]
[335533839,1724314254075,-200.0,0.00019726,7]
[335533840,1724314254086,-500.0,0.00019726,7]
[335533841,1724314254097,-534.0258323,0.00019726,7]
[335533842,1724314254109,-500.0,0.00019726,7]
[335533843,1724314254121,-500.0,0.00019726,7]
[335533844,1724314254131,-500.0,0.00019726,7]
[335533845,1724314254142,-500.0,0.00019726,7]
[335533846,1724314254154,-500.0,0.00019726,7]
[335533847,1724314254165,-500.0,0.00019726,7]
[335533848,1724314254177,-713.27,0.00019726,7]
[335533849,1724314254189,-500.0,0.00019726,7]
[335533850,1724314254198,-500.0,0.00019726,7]
[335533851,1724314254208,-500.0,0.00019726,7]
[335533852,1724314254219,-500.0,0.00019726,7]
[335533853,1724314254228,-508.43269535,0.00019726,7]
[335533854,1724314254238,-500.0,0.00019726,7]
[335533855,1724314254248,-500.0,0.00019726,7]
[335533856,1724314254258,-781.35,0.00019726,7]
[335533857,1724314254267,-500.0,0.00019726,7]
[335533858,1724314254276,-2169.36,0.00019726,7]
[335533859,1724314254286,-500.0,0.00019726,7]
[335533860,1724314254296,-500.0,0.00019726,7]
[335533861,1724314254305,-500.0,0.00019726,7]
[335533862,1724314254315,-518.75,0.00019726,7]
[335533863,1724314254325,-500.0,0.00019726,7]
[335533864,1724314254335,-500.0,0.00019726,7]
[335533865,1724314254345,-500.0,0.00019726,7]
[335533866,1724314254355,-502.20221388,0.00019726,7]
[335533867,1724314254365,-641.77,0.00019726,7]
[335533868,1724314254375,-500.0,0.00019726,7]
[335533869,1724314254384,-500.0,0.00019726,7]
[335533870,1724314254394,-521.15,0.00019726,7]
[335533871,1724314254403,-500.0,0.00019726,7]
[335533872,1724314254413,-163.17092955,0.00019726,7]
[335533873,1724314254425,-500.0,0.00019726,7]
[335533874,1724314254436,-524.55,0.00019726,7]
[335533875,1724314254449,-500.0,0.00019726,7]
[335533876,1724314254460,-500.0,0.00019726,7]
[335533877,1724314254473,-558.23,0.00019726,7]
[335533878,1724314254486,-500.0,0.00019726,7]
[335533879,1724314254495,-500.0,0.00019726,7]
[335533880,1724314254507,-500.0,0.00019726,7]
[335533881,1724314254517,-678.49,0.00019726,7]
[335533882,1724314254527,-500.0,0.00019726,7]
[335533883,1724314254537,-592.59,0.00019726,7]
[335533884,1724314254548,-500.0,0.00019726,7]
[335533885,1724314254559,-512.03,0.00019726,7]
[335533886,1724314254570,-650.18,0.00019726,7]
[335533887,1724314254582,-500.0,0.00019726,7]
[335533888,1724314254594,-500.0,0.00019726,7]
[335533889,1724314254604,-500.0,0.00019726,7]
[335533890,1724314254614,-500.0,0.00019726,7]
[335533891,1724314254625,-500.0,0.00019726,7]
[335533892,1724314254638,-500.0,0.00019726,7]
[335533893,1724314254649,-594.21,0.00019726,7]
[335533894,1724314254660,-500.0,0.00019726,7]
[335533895,1724314254672,-500.0,0.00019726,7]
[335533896,1724314254683,-2929.49,0.00019726,7]
[335533897,1724314254695,-793.53,0.00019726,7]
[335533898,1724314254708,-500.0,0.00019726,7]
[335533899,1724314254719,-500.0,0.00019726,7]
[335533900,1724314254730,-500.0,0.00019726,7]
[335533901,1724314254741,-500.0,0.00019726,7]
[335533902,1724314254751,-501.02889922,0.00019726,7]
[335533903,1724314254761,-500.0,0.00019726,7]
[335533904,1724314254771,-229.17503676,0.00019726,7]
[335533905,1724314254784,-988.14,0.00019726,7]
[335533906,1724314254796,-500.0,0.00019726,7]
[335533907,1724314254808,-534.4,0.00019726,7]
[335533908,1724314254833,-500.0,0.00019726,7]
[335533909,1724314254847,-521.5,0.00019726,7]
[335533910,1724314254857,-1163.67,0.00019726,7]
[335533911,1724314254868,-500.0,0.00019726,7]
[335533912,1724314254879,-500.0,0.00019726,7]
[335533913,1724314254890,-729.54,0.00019726,7]
[335533914,1724314254900,-526.53,0.00019726,7]
[335533915,1724314254909,-502.04300891,0.00019726,7]
[335533916,1724314254919,-500.0,0.00019726,7]
[335533917,1724314254929,-501.24214852,0.00019726,7]
[335533918,1724314254938,-1769.8,0.00019726,7]
[335533919,1724314254948,-500.0,0.00019726,7]
[335533920,1724314254958,-500.0,0.00019726,7]
[335533921,1724314254968,-500.0,0.00019726,7]
[335533922,1724314254980,-500.0,0.00019726,7]
[335533923,1724314254990,-500.0,0.00019726,7]
[335533924,1724314255000,-500.0,0.00019726,7]
[335533925,1724314255011,-500.0,0.00019726,7]
[335533926,1724314255021,-500.0,0.00019726,7]
[335533927,1724314255031,-500.0,0.00019726,7]
[335533928,1724314255043,-500.0,0.00019726,7]
[335533929,1724314255056,-500.0,0.00019726,7]
[335533930,1724314255071,-1000.03,0.00019726,7]
[335533931,1724314255083,-500.0,0.00019726,7]
[335533932,1724314255093,-500.0,0.00019726,7]
[335533933,1724314255102,-500.0,0.00019726,7]
[335533934,1724314255112,-500.0,0.00019726,7]
[335533935,1724314255123,-500.0,0.00019726,7]
[335533936,1724314255134,-500.0,0.00019726,7]
[335533937,1724314255144,-500.0,0.00019726,7]
[335533938,1724314255155,-500.0,0.00019726,7]
[335533939,1724314255166,-500.0,0.00019726,7]
[335533940,1724314255176,-500.0,0.00019726,7]
[335533941,1724314255186,-500.0,0.00019726,7]
[335533942,1724314255197,-500.0,0.00019726,7]
[335533943,1724314255209,-500.0,0.00019726,7]
[335533944,1724314255221,-500.0,0.00019726,7]
[335533945,1724314255231,-500.0,0.00019726,7]
[335533946,1724314255242,-500.0,0.00019726,7]
[335533947,1724314255253,-500.0,0.00019726,7]
[335533948,1724314255263,-500.0,0.00019726,7]
[335533949,1724314255275,-2377.17,0.00019726,7]
[335533950,1724314255286,-500.0,0.00019726,7]
[335533951,1724314255296,-1265.96,0.00019726,7]
[335533952,1724314255306,-750.59,0.00019726,7]
[335533953,1724314255317,-500.0,0.00019726,7]
[335533954,1724314255326,-500.0,0.00019726,7]
[335533955,1724314255335,-2580.48,0.00019726,7]
[335533956,1724314255346,-1000.0,0.00019726,7]
[335533957,1724314255356,-500.0,0.00019726,7]
[335533958,1724314255365,-500.0,0.00019726,7]
[335533959,1724314255374,-500.0,0.00019726,7]
[335533960,1724314255384,-500.0,0.00019726,7]
[335533961,1724314255394,-500.0,0.00019726,7]
[335533962,1724314255404,-500.0,0.00019726,7]
[335533963,1724314255414,-500.0,0.00019726,7]
[335533964,1724314255424,-260.94950624,0.00019726,7]
[335533965,1724314255433,-1474.18,0.00019726,7]
[335533966,1724314255444,-500.0,0.00019726,7]
[335533967,1724314255454,-500.0,0.00019726,7]
[335533968,1724314255463,-500.0,0.00019726,7]
[335533969,1724314255473,-500.0,0.00019726,7]
[335533970,1724314255482,-500.0,0.00019726,7]
[335533971,1724314255492,-619.65773544,0.00019726,7]
[335533972,1724314255501,-502.71665386,0.00019726,7]
[335533973,1724314255511,-500.0,0.00019726,7]
[335533974,1724314255521,-500.0,0.00019726,7]
[335533975,1724314255530,-501.11993912,0.00019726,7]
[335533976,1724314255540,-500.0,0.00019726,7]
[335533977,1724314255550,-500.0,0.00019726,7]
[335533978,1724314255560,-500.0,0.00019726,7]
[335533979,1724314255570,-287.00776487,0.00019726,7]
[335533980,1724314255579,-500.0,0.00019726,7]
[335533981,1724314255589,-500.0,0.00019726,7]
[335533982,1724314255598,-500.0,0.00019726,7]
[335533983,1724314255609,-500.0,0.00019726,7]
[335533984,1724314255619,-500.0,0.00019726,7]
[335533985,1724314255628,-500.0,0.00019726,7]
[335533986,1724314255637,-500.0,0.00019726,7]
[335533987,1724314255647,-500.0,0.00019726,7]
[335533988,1724314255657,-509.04748953,0.00019726,7]
[335533989,1724314255670,-500.0,0.00019726,7]
[335533990,1724314255679,-500.0,0.00019726,7]
[335533991,1724314255689,-504.76938422,0.00019726,7]
[335533992,1724314255699,-500.0,0.00019726,7]
[335533993,1724314255709,-664.22,0.00019726,7]
[335533994,1724314255719,-4213.85,0.00019726,7]
[335533995,1724314255730,-500.0,0.00019726,7]
[335533996,1724314255740,-500.0,0.00019726,7]
[335533997,1724314255750,-500.0,0.00019726,7]
[335533998,1724314255760,-500.0,0.00019726,7]
[335533999,1724314255769,-505.49,0.00019726,7]
[335534000,1724314255779,-500.0,0.00019726,7]
[335534001,1724314255789,-500.0,0.00019726,7]
[335534002,1724314255799,-5692.17,0.00019726,7]
[335534003,1724314255809,-500.0,0.00019726,7]
[335534004,1724314255819,-500.0,0.00019726,7]
[335534005,1724314255981,-10474.35,0.00019726,7]
[335534006,1724314255991,-500.0,0.00019726,7]
[335534007,1724314256000,-500.0,0.00019726,7]
[335534008,1724314256009,-500.0,0.00019726,7]
[335534009,1724314256018,-500.0,0.00019726,7]
[335534010,1724314256028,-1229.7,0.00019726,7]
[335534011,1724314256037,-500.0,0.00019726,7]
[335534012,1724314256047,-500.0,0.00019726,7]
[335534013,1724314256057,-500.0,0.00019726,7]
[335534014,1724314256068,-500.0,0.00019726,7]
[335534015,1724314256077,-5892.9,0.00019726,7]
[335534016,1724314256086,-508.11655359,0.00019726,7]
[335534017,1724314256095,-500.0,0.00019726,7]
[335534018,1724314256104,-500.0,0.00019726,7]
[335534019,1724314256114,-500.0,0.00019726,7]
[335534020,1724314256123,-500.0,0.00019726,7]
[335534021,1724314256132,-500.0,0.00019726,7]
[335534022,1724314256142,-500.0,0.00019726,7]
[335534023,1724314256151,-500.0,0.00019726,7]
[335534024,1724314256160,-500.0,0.00019726,7]
[335534025,1724314256170,-12225.58,0.00019726,7]
[335534026,1724314256179,-500.0,0.00019726,7]
[335534027,1724314256188,-22280.85,0.00019726,7]
[335534028,1724314256198,-500.0,0.00019726,7]
[335534029,1724314256207,-626.93,0.00019726,7]
[335534030,1724314256217,-500.0,0.00019726,7]
[335534031,1724314256226,-584.08,0.00019726,7]
[335534032,1724314256234,-630.08,0.00019726,7]
[335534033,1724314256244,-500.0,0.00019726,7]
[335534034,1724314256253,-2786.21,0.00019726,7]
[335534035,1724314256262,-2303.06,0.00019726,7]
[335534036,1724314256271,-500.0,0.00019726,7]
[335534037,1724314256281,-500.0,0.00019726,7]
[335534038,1724314256290,-1202.63,0.00019726,7]
[335534039,1724314256300,-500.0,0.00019726,7]
[335534040,1724314256309,-596.10715621,0.00019726,7]
[335534041,1724314256319,-500.0,0.00019726,7]
[335534042,1724314256328,-500.0,0.00019726,7]
[335534043,1724314256337,-500.0,0.00019726,7]
[335534044,1724314256346,-500.0,0.00019726,7]
[335534045,1724314256355,-500.0,0.00019726,7]
[335534046,1724314256364,-1131.48,0.00019726,7]
[335534047,1724314256373,-500.0,0.00019726,7]
[335534048,1724314256383,-891.44,0.00019726,7]
[335534049,1724314256392,-500.0,0.00019726,7]
[335534050,1724314256402,-500.0,0.00019726,7]
[335534051,1724314256411,-500.0,0.00019726,7]
[335534052,1724314256420,-500.0,0.00019726,7]
[335534053,1724314256429,-500.0,0.00019726,7]
[335534054,1724314256438,-500.0,0.00019726,7]
[335534055,1724314256449,-637.13,0.00019726,7]
[335534056,1724314256459,-500.0,0.00019726,7]
[335534057,1724314256468,-500.0,0.00019726,7]
[335534058,1724314256477,-500.0,0.00019726,7]
[335534059,1724314256486,-500.0,0.00019726,7]
[335534060,1724314256495,-500.0,0.00019726,7]
[335534061,1724314256504,-2762.28,0.00019726,7]
[335534062,1724314256514,-500.0,0.00019726,7]
[335534063,1724314256523,-515.89930344,0.00019726,7]
[335534064,1724314256533,-500.0,0.00019726,7]
[335534065,1724314256542,-500.0,0.00019726,7]
[335534066,1724314256551,-500.0,0.00019726,7]
[335534067,1724314256561,-500.0,0.00019726,7]
[335534068,1724314256570,-500.0,0.00019726,7]
[335534069,1724314256579,-500.0,0.00019726,7]
[335534070,1724314256588,-500.0,0.00019726,7]
[335534071,1724314256598,-1679.68,0.00019726,7]
[335534072,1724314256607,-500.0,0.00019726,7]
[335534073,1724314256616,-500.0,0.00019726,7]
[335534074,1724314256625,-500.0,0.00019726,7]
[335534075,1724314256636,-500.0,0.00019726,7]
[335534076,1724314256645,-500.0,0.00019726,7]
[335534077,1724314256654,-500.0,0.00019726,7]
[335534078,1724314256664,-500.0,0.00019726,7]
[335534079,1724314256674,-868.1,0.00019726,7]
[335534080,1724314256683,-500.0,0.00019726,7]
[335534081,1724314256692,-500.0,0.00019726,7]
[335534082,1724314256704,-500.0,0.00019726,7]
[335534083,1724314256715,-500.0,0.00019726,7]
[335534084,1724314256725,-3297.73,0.00019726,7]
[335534085,1724314256736,-540.50373797,0.00019726,7]
[335534086,1724314256745,-1612.66,0.00019726,7]
[335534087,1724314256754,-500.0,0.00019726,7]
[335534088,1724314256763,-500.0,0.00019726,7]
[335534089,1724314256774,-502.79952749,0.00019726,7]
[335534090,1724314256783,-500.0,0.00019726,7]
[335534091,1724314256793,-2394.06,0.00019726,7]
[335534092,1724314256803,-500.0,0.00019726,7]
[335534093,1724314256814,-500.0,0.00019726,7]
[335534094,1724314256823,-500.0,0.00019726,7]
[335534095,1724314256833,-521.2,0.00019726,7]
[335534096,1724314256843,-694.92,0.00019726,7]
[335534097,1724314256852,-1929.21,0.00019726,7]
[335534098,1724314256862,-1791.4,0.00019726,7]
[335534099,1724314256871,-500.0,0.00019726,7]
[335534100,1724314256880,-500.0,0.00019726,7]
[335534101,1724314256892,-500.0,0.00019726,7]
[335534102,1724314256901,-704.26,0.00019726,7]
[335534103,1724314256910,-500.0,0.00019726,7]
[335534104,1724314256920,-500.0,0.00019726,7]
[335534105,1724314256930,-500.0,0.00019726,7]
[335534106,1724314256939,-500.0,0.00019726,7]
[335534107,1724314256949,-500.0,0.00019726,7]
[335534108,1724314256958,-500.0,0.00019726,7]
[335534109,1724314256968,-500.0,0.00019726,7]
[335534110,1724314256979,-500.0,0.00019726,7]
[335534111,1724314256989,-500.0,0.00019726,7]
[335534112,1724314256999,-206.47234373,0.00019726,7]
[335534113,1724314257010,-500.0,0.00019726,7]
[335534114,1724314257020,-500.0,0.00019726,7]
[335534115,1724314257030,-500.0,0.00019726,7]
[335534116,1724314257039,-688.84,0.00019726,7]
[335534117,1724314257050,-506.26739878,0.00019726,7]
[335534118,1724314257060,-500.0,0.00019726,7]
[335534119,1724314257069,-500.0,0.00019726,7]
[335534120,1724314257079,-885.84,0.00019726,7]
[335534121,1724314257089,-9983.04,0.00019726,7]
[335534122,1724314257098,-500.0,0.00019726,7]
[335534123,1724314257107,-515.78,0.00019726,7]
[335534124,1724314257116,-500.0,0.00019726,7]
[335534125,1724314257126,-500.0,0.00019726,7]
[335534126,1724314257135,-500.0,0.00019726,7]
[335534127,1724314257145,-782.84,0.00019726,7]
[335534128,1724314257155,-500.0,0.00019726,7]
[335534129,1724314257164,-500.0,0.00019726,7]
[335534130,1724314257173,-544.68758539,0.00019726,7]
[335534131,1724314257183,-2139.81,0.00019726,7]
[335534132,1724314257192,-504.60926239,0.00019726,7]
[335534133,1724314257201,-500.0,0.00019726,7]
[335534134,1724314257211,-500.0,0.00019726,7]
[335534135,1724314257220,-500.0,0.00019726,7]
[335534136,1724314257230,-500.0,0.00019726,7]
[335534137,1724314257239,-921.2,0.00019726,7]
[335534138,1724314257248,-500.0,0.00019726,7]
[335534139,1724314257258,-500.0,0.00019726,7]
[335534140,1724314257267,-500.0,0.00019726,7]
[335534141,1724314257276,-500.0,0.00019726,7]
[335534142,1724314257286,-511.28331246,0.00019726,7]
[335534143,1724314257296,-500.0,0.00019726,2]
[335534144,1724314257305,-500.0,0.00019726,7]
[335534145,1724314257319,-500.0,0.00019726,7]